[Event "FIDE Women World Blitz 2021"]
[Site "Warsaw"]
[Date "2021.12.29"]
[Round "5.7"]
[White "Osmak, Yuliia"]
[Black "Kosteniuk, Alexandra"]
[Result "0-1"]
[ECO "A28"]
[WhiteElo "2198"]
[BlackElo "2518"]
[Annotator "ChessBase"]
[PlyCount "118"]
[EventDate "2021.12.29"]
[EventType "swiss"]
[EventCountry "POL"]
[Tiebreak "Cut1 Buchholz"]
[SourceTitle "playchess.com"]
[Source "ChessBase"]
[SourceQuality "1"]
[TimeControl "180+2"]

1. c4 {[%emt 0:00:01]} e5 {[%emt 0:00:01]} 2. Nc3 {[%emt 0:00:01]} Nf6 {
[%emt 0:00:01]} 3. Nf3 {[%emt 0:00:03]} Nc6 {[%emt 0:00:01]} 4. e4 {[%emt 0:00:
01]} Bb4 {[%emt 0:00:02]} 5. d3 {[%emt 0:00:03]} d6 {[%emt 0:00:09]} 6. a3 {
[%emt 0:00:02]} Bc5 {[%emt 0:00:07]} 7. b4 {[%emt 0:00:00]} Bb6 {[%emt 0:00:08]
} 8. Be3 {[%emt 0:00:03]} Bd4 {[%emt 0:00:09]} 9. Rc1 {[%emt 0:00:26]} Ng4 {
[%emt 0:00:29]} 10. Bxd4 {[%emt 0:00:15]} Nxd4 {[%emt 0:00:02]} 11. Be2 {
[%emt 0:00:35]} Nxf3+ {[%emt 0:00:16]} 12. Bxf3 {[%emt 0:00:02]} Qh4 {[%emt 0:
00:01]} 13. g3 {[%emt 0:00:25]} Qh3 {[%emt 0:00:08]} 14. Nd5 {[%emt 0:00:21]}
Kd8 {[%emt 0:00:00]} 15. Qe2 {[%emt 0:00:52]} c6 {[%emt 0:00:11]} 16. Ne3 {
[%emt 0:00:05]} Nxe3 17. Qxe3 {[%emt 0:00:01]} Qe6 {[%emt 0:00:36]} 18. Qg5+ {
[%emt 0:00:04]} Qf6 {[%emt 0:00:02]} 19. Qxf6+ {[%emt 0:00:02]} gxf6 {[%emt 0:
00:01]} 20. Ke2 {[%emt 0:00:03]} f5 {[%emt 0:00:01]} 21. Ke3 {[%emt 0:00:02]}
Ke7 {[%emt 0:00:02]} 22. c5 {[%emt 0:00:02]} Rd8 {[%emt 0:00:09]} 23. Rhd1 {
[%emt 0:00:06]} a5 {[%emt 0:00:03]} 24. cxd6+ {[%emt 0:00:04]} Rxd6 {[%emt 0:
00:02]} 25. b5 {[%emt 0:00:01]} cxb5 {[%emt 0:00:11]} 26. Rc5 {[%emt 0:00:01]}
f6 {[%emt 0:00:04]} 27. Rxb5 {[%emt 0:00:01]} b6 {[%emt 0:00:02]} 28. Rb3 {
[%emt 0:00:05]} Rb8 {[%emt 0:00:18]} 29. Rdb1 {[%emt 0:00:02]} fxe4 {[%emt 0:
00:13]} 30. dxe4 {[%emt 0:00:01]} Ba6 {[%emt 0:00:06]} 31. Be2 {[%emt 0:00:01]}
Bc8 {[%emt 0:00:06]} 32. Bc4 {[%emt 0:00:02]} Bd7 {[%emt 0:00:02]} 33. Bd5 {
[%emt 0:00:03]} b5 {[%emt 0:00:01]} 34. f4 {[%emt 0:00:02]} Rdb6 {[%emt 0:00:
02]} 35. fxe5 {[%emt 0:00:03]} fxe5 {[%emt 0:00:01]} 36. Rf1 {[%emt 0:00:01]}
Rf6 {[%emt 0:00:00]} 37. Rbb1 {[%emt 0:00:04]} Rxf1 {[%emt 0:00:14]} 38. Rxf1 {
[%emt 0:00:00]} Be6 {[%emt 0:00:00]} 39. Rb1 {[%emt 0:00:09]} b4 {[%emt 0:00:
02]} 40. axb4 {[%emt 0:00:02]} axb4 {[%emt 0:00:01]} 41. Rb3 {[%emt 0:00:02]}
Bd7 {[%emt 0:00:01]} 42. h4 {[%emt 0:00:03]} Ba4 {[%emt 0:00:02]} 43. Rb2 {
[%emt 0:00:01]} b3 {[%emt 0:00:02]} 44. g4 {[%emt 0:00:02]} Kd6 {[%emt 0:00:02]
} 45. g5 {[%emt 0:00:01]} Kc5 {[%emt 0:00:04]} 46. h5 {[%emt 0:00:02]} Kb4 {
[%emt 0:00:01]} 47. g6 {[%emt 0:00:02]} hxg6 {[%emt 0:00:01]} 48. hxg6 {
[%emt 0:00:01]} Kc3 {[%emt 0:00:04]} 49. Rb1 {[%emt 0:00:03]} b2 {[%emt 0:00:
10]} 50. g7 {[%emt 0:00:01]} Bb3 {[%emt 0:00:06]} 51. Bxb3 Kxb3 {[%emt 0:00:02]
} 52. Kf3 {[%emt 0:00:08]} Rg8 {[%emt 0:00:02]} 53. Kg4 {[%emt 0:00:01]} Rxg7+
{[%emt 0:00:01]} 54. Kf5 {[%emt 0:00:01]} Re7 55. Kf6 Re8 {[%emt 0:00:01]} 56.
Kf7 {[%emt 0:00:01]} Rb8 {[%emt 0:00:01]} 57. Ke6 {[%emt 0:00:01]} Rb5 {
[%emt 0:00:00]} 58. Kd6 {[%emt 0:00:02]} Kc2 {[%emt 0:00:01]} 59. Rf1 {[%emt 0:
00:01]} b1=Q {[%emt 0:00:02]} 0-1

[Event "FIDE Women World Blitz 2021"]
[Site "Warsaw"]
[Date "2021.12.29"]
[Round "5.8"]
[White "Serikbay, Assel"]
[Black "Paehtz, Elisabeth"]
[Result "0-1"]
[ECO "E66"]
[WhiteElo "2237"]
[BlackElo "2485"]
[Annotator "ChessBase"]
[PlyCount "96"]
[EventDate "2021.12.29"]
[EventType "swiss"]
[EventCountry "POL"]
[Tiebreak "Cut1 Buchholz"]
[SourceTitle "playchess.com"]
[Source "ChessBase"]
[SourceQuality "1"]
[TimeControl "180+2"]

1. d4 {[%emt 0:00:02]} d6 {[%emt 0:00:00]} 2. Nf3 {[%emt 0:00:04]} g6 {[%emt 0:
00:02]} 3. c4 {[%emt 0:00:02]} Bg7 {[%emt 0:00:01]} 4. g3 {[%emt 0:00:02]} Nf6
{[%emt 0:00:02]} 5. Bg2 {[%emt 0:00:01]} O-O {[%emt 0:00:01]} 6. O-O {[%emt 0:
00:02]} Nc6 {[%emt 0:00:01]} 7. Nc3 {[%emt 0:00:01]} a6 {[%emt 0:00:01]} 8. d5
{[%emt 0:00:05]} Na5 {[%emt 0:00:02]} 9. Nd2 {[%emt 0:00:14]} c5 {[%emt 0:00:
01]} 10. Rb1 {[%emt 0:00:08]} e5 {[%emt 0:00:10]} 11. dxe6 {[%emt 0:00:43]}
Bxe6 {[%emt 0:00:02]} 12. Nd5 {[%emt 0:00:01]} Nxd5 {[%emt 0:00:23]} 13. cxd5 {
[%emt 0:00:02]} Bf5 {[%emt 0:00:05]} 14. e4 {[%emt 0:00:02]} Bd7 {[%emt 0:00:
01]} 15. b3 {[%emt 0:00:10]} b5 {[%emt 0:00:07]} 16. Bb2 {[%emt 0:00:07]} Bxb2
{[%emt 0:00:02]} 17. Rxb2 {[%emt 0:00:01]} Qf6 {[%emt 0:00:01]} 18. Rc2 {
[%emt 0:00:05]} Rfe8 {[%emt 0:00:16]} 19. Re1 {[%emt 0:00:03]} Nb7 {[%emt 0:00:
07]} 20. f4 {[%emt 0:00:02]} Qd4+ {[%emt 0:00:01]} 21. Kh1 {[%emt 0:00:03]} a5
{[%emt 0:00:03]} 22. Qe2 {[%emt 0:00:18]} a4 {[%emt 0:00:07]} 23. e5 {[%emt 0:
00:18]} Bf5 {[%emt 0:00:07]} 24. Rcc1 axb3 {[%emt 0:00:05]} 25. Nxb3 {[%emt 0:
00:04]} Qd3 {[%emt 0:00:05]} 26. Qxd3 Bxd3 {[%emt 0:00:02]} 27. exd6 {[%emt 0:
00:13]} Rxe1+ {[%emt 0:00:18]} 28. Rxe1 {[%emt 0:00:00]} c4 {[%emt 0:00:08]}
29. Nc1 {[%emt 0:00:28]} Bf5 {[%emt 0:00:01]} 30. h3 {[%emt 0:00:09]} Nxd6 {
[%emt 0:00:04]} 31. g4 {[%emt 0:00:01]} Bb1 {[%emt 0:00:05]} 32. Re7 {[%emt 0:
00:08]} Re8 {[%emt 0:00:10]} 33. Rxe8+ {[%emt 0:00:09]} Nxe8 {[%emt 0:00:02]}
34. Kg1 {[%emt 0:00:01]} Kf8 {[%emt 0:00:04]} 35. Kf2 {[%emt 0:00:01]} Ke7 {
[%emt 0:00:09]} 36. Ke3 {[%emt 0:00:00]} Kd6 {[%emt 0:00:01]} 37. Kd4 {[%emt 0:
00:01]} Bc2 {[%emt 0:00:09]} 38. Ne2 {[%emt 0:00:04]} Nc7 {[%emt 0:00:06]} 39.
Nc3 {[%emt 0:00:08]} b4 {[%emt 0:00:02]} 40. Ne2 {[%emt 0:00:03]} Bd3 {[%emt 0:
00:05]} 41. Nc1 {[%emt 0:00:01]} Nb5+ {[%emt 0:00:06]} 42. Ke3 {[%emt 0:00:01]}
Bb1 {[%emt 0:00:07]} 43. Bf1 {[%emt 0:00:01]} Kxd5 {[%emt 0:00:02]} 44. Bg2+ {
[%emt 0:00:04]} Kc5 {[%emt 0:00:01]} 45. h4 {[%emt 0:00:09]} Nc3 {[%emt 0:00:
02]} 46. h5 {[%emt 0:00:06]} gxh5 {[%emt 0:00:02]} 47. gxh5 {[%emt 0:00:01]} h6
{[%emt 0:00:02]} 48. Bf3 {[%emt 0:00:04]} Bxa2 {[%emt 0:00:05]} 0-1

[Event "FIDE Women World Blitz 2021"]
[Site "Warsaw"]
[Date "2021.12.29"]
[Round "5.9"]
[White "Abdumalik, Zhansaya"]
[Black "Mamedjarova, Zeinab"]
[Result "1-0"]
[ECO "C41"]
[WhiteElo "2507"]
[BlackElo "2249"]
[Annotator "ChessBase"]
[PlyCount "45"]
[EventDate "2021.12.29"]
[EventType "swiss"]
[EventCountry "POL"]
[Tiebreak "Cut1 Buchholz"]
[SourceTitle "playchess.com"]
[Source "ChessBase"]
[SourceQuality "1"]
[TimeControl "180+2"]

1. e4 {[%emt 0:00:02]} e5 {[%emt 0:00:00]} 2. Nf3 {[%emt 0:00:01]} d6 {[%emt 0:
00:01]} 3. d4 {[%emt 0:00:06]} exd4 {[%emt 0:00:02]} 4. Nxd4 {[%emt 0:00:01]}
Nf6 {[%emt 0:00:01]} 5. Nc3 {[%emt 0:00:01]} Be7 {[%emt 0:00:00]} 6. Bc4 {
[%emt 0:00:02]} O-O {[%emt 0:00:02]} 7. O-O {[%emt 0:00:01]} c6 {[%emt 0:00:00]
} 8. a4 {[%emt 0:00:00]} a5 {[%emt 0:00:00]} 9. Re1 {[%emt 0:00:01]} Re8 {
[%emt 0:00:10]} 10. b3 {[%emt 0:00:12]} Bf8 {[%emt 0:00:04]} 11. Bb2 {[%emt 0:
00:02]} Nbd7 {[%emt 0:00:12]} 12. h3 {[%emt 0:00:06]} Nc5 {[%emt 0:00:21]} 13.
Qf3 {[%emt 0:00:10]} g6 {[%emt 0:01:05]} 14. Rad1 {[%emt 0:00:11]} Bg7 {
[%emt 0:00:02]} 15. e5 {[%emt 0:00:38]} dxe5 {[%emt 0:00:31]} 16. Nxc6 {
[%emt 0:00:29]} Qc7 {[%emt 0:00:07]} 17. Nxe5 {[%emt 0:00:02]} Be6 {[%emt 0:00:
06]} 18. Nb5 {[%emt 0:00:06]} Qe7 {[%emt 0:00:13]} 19. Bxe6 {[%emt 0:00:11]}
Qxe6 {[%emt 0:00:10]} 20. Nc7 {[%emt 0:00:02]} Qb6 {[%emt 0:00:23]} 21. Nxa8 {
[%emt 0:00:03]} Rxa8 {[%emt 0:00:01]} 22. Nc4 {[%emt 0:00:03]} Qa6 {[%emt 0:00:
05]} 23. Rd6 {[%emt 0:00:02]} 1-0

[Event "FIDE Women World Blitz 2021"]
[Site "Warsaw"]
[Date "2021.12.29"]
[Round "5.10"]
[White "Zatonskih, Anna"]
[Black "Nomin-Erdene, Davaademberel"]
[Result "0-1"]
[ECO "A81"]
[WhiteElo "2394"]
[BlackElo "2188"]
[Annotator "NA"]
[PlyCount "28"]
[EventDate "2021.12.29"]
[EventType "swiss"]
[EventCountry "POL"]
[Tiebreak "Cut1 Buchholz"]
[SourceTitle "playchess.com"]
[Source "ChessBase"]
[SourceQuality "1"]
[TimeControl "180+2"]

1. d4 {[%emt 0:00:01]} f5 {[%emt 0:00:00]} 2. g3 {[%emt 0:00:02]} Nf6 {[%emt 0:
00:02]} 3. Bg2 {[%emt 0:00:01]} g6 {[%emt 0:00:01]} 4. Nd2 {[%emt 0:00:01]} Bg7
{[%emt 0:00:02]} 5. e4 {[%emt 0:00:01]} d6 {[%emt 0:00:37]} 6. c3 {[%emt 0:00:
21]} Nc6 {[%emt 0:00:10]} 7. Qe2 {[%emt 0:00:36]} fxe4 {[%emt 0:00:36]} 8. Nxe4
{[%emt 0:00:01]} O-O {[%emt 0:00:07]} 9. Ng5 {[%emt 0:00:33]} e5 {[%emt 0:00:
01]} 10. dxe5 {[%emt 0:01:12]} Nxe5 {[%emt 0:00:02]} 11. N1f3 {[%emt 0:00:06]}
Re8 {[%emt 0:00:23]} 12. O-O {[%emt 0:00:22]} h6 {[%emt 0:00:10]} 13. Ne4 {
[%emt 0:00:08]} Bg4 {[%emt 0:00:18]} 14. Nxf6+ {[%emt 0:00:00]} Qxf6 {[%emt 0:
00:01]} 0-1

[Event "FIDE Women World Blitz 2021"]
[Site "Warsaw"]
[Date "2021.12.29"]
[Round "5.11"]
[White "Hryzlova, Sofiia"]
[Black "Zhukova, Natalia"]
[Result "0-1"]
[ECO "D02"]
[WhiteElo "2097"]
[BlackElo "2331"]
[Annotator "NA"]
[PlyCount "93"]
[EventDate "2021.12.29"]
[EventType "swiss"]
[EventCountry "POL"]
[Tiebreak "Cut1 Buchholz"]
[SourceTitle "playchess.com"]
[Source "ChessBase"]
[SourceQuality "1"]
[TimeControl "180+2"]

1. d4 {[%emt 0:00:01]} d5 {[%emt 0:00:01]} 2. Nf3 {[%emt 0:00:02]} Nf6 {
[%emt 0:00:03]} 3. g3 {[%emt 0:00:01]} c5 {[%emt 0:00:13]} 4. Bg2 {[%emt 0:00:
09]} Nc6 {[%emt 0:00:12]} 5. O-O {[%emt 0:00:06]} e6 {[%emt 0:00:04]} 6. b3 {
[%emt 0:00:21]} Be7 {[%emt 0:00:05]} 7. Bb2 {[%emt 0:00:01]} O-O {[%emt 0:00:
02]} 8. e3 {[%emt 0:00:22]} b6 {[%emt 0:00:04]} 9. Nbd2 {[%emt 0:00:02]} a5 {
[%emt 0:00:04]} 10. a4 {[%emt 0:00:04]} Ba6 {[%emt 0:00:03]} 11. Re1 {[%emt 0:
00:03]} Rc8 {[%emt 0:00:03]} 12. Ne5 {[%emt 0:00:16]} Bd6 {[%emt 0:00:47]} 13.
Nxc6 {[%emt 0:00:30]} Rxc6 {[%emt 0:00:01]} 14. Nc4 {[%emt 0:00:01]} Be7 {
[%emt 0:00:34]} 15. Ne5 {[%emt 0:00:12]} Rc8 16. c4 {[%emt 0:00:11]} cxd4 {
[%emt 0:00:11]} 17. exd4 {[%emt 0:00:02]} Bb4 {[%emt 0:00:05]} 18. Re3 {
[%emt 0:00:05]} dxc4 {[%emt 0:00:13]} 19. bxc4 {[%emt 0:00:15]} Bxc4 {[%emt 0:
00:01]} 20. Nc6 {[%emt 0:00:12]} Qd6 {[%emt 0:00:03]} 21. Nxb4 {[%emt 0:00:02]}
axb4 {[%emt 0:00:01]} 22. Qd2 {[%emt 0:00:13]} Nd5 {[%emt 0:00:06]} 23. Re5 {
[%emt 0:00:12]} Rc7 {[%emt 0:00:08]} 24. f4 {[%emt 0:00:03]} Ne7 {[%emt 0:00:
15]} 25. Rc1 {[%emt 0:00:06]} Rfc8 {[%emt 0:00:02]} 26. h4 {[%emt 0:00:13]} Bd5
{[%emt 0:00:00]} 27. Rxc7 {[%emt 0:00:02]} Qxc7 {[%emt 0:00:02]} 28. Kh2 {
[%emt 0:00:05]} Bxg2 {[%emt 0:00:02]} 29. Qxg2 {[%emt 0:00:01]} Nd5 {[%emt 0:
00:01]} 30. Re2 {[%emt 0:00:02]} Qc4 {[%emt 0:00:04]} 31. f5 {[%emt 0:00:02]}
Nc3 {[%emt 0:00:08]} 32. Rc2 {[%emt 0:00:03]} exf5 {[%emt 0:00:03]} 33. Qb7 {
[%emt 0:00:03]} h6 {[%emt 0:00:02]} 34. Qxb6 {[%emt 0:00:01]} Qd3 {[%emt 0:00:
04]} 35. Rg2 {[%emt 0:00:02]} Qc4 {[%emt 0:00:02]} 36. a5 {[%emt 0:00:01]} Na4
{[%emt 0:00:04]} 37. Qb7 {[%emt 0:00:01]} Re8 {[%emt 0:00:05]} 38. a6 {[%emt 0:
00:01]} Nxb2 {[%emt 0:00:02]} 39. a7 {[%emt 0:00:02]} Qa2 {[%emt 0:00:02]} 40.
a8=Q {[%emt 0:00:03]} Rxa8 {[%emt 0:00:02]} 41. Kh3 {[%emt 0:00:06]} Rf8 {
[%emt 0:00:03]} 42. d5 {[%emt 0:00:02]} Qa3 {[%emt 0:00:02]} 43. d6 {[%emt 0:
00:01]} Nd3 {[%emt 0:00:06]} 44. Kh2 {[%emt 0:00:03]} Nc5 {[%emt 0:00:06]} 45.
Qc6 {[%emt 0:00:02]} b3 {[%emt 0:00:02]} 46. d7 {[%emt 0:00:02]} b2 {[%emt 0:
00:03]} 47. Qc7 {[%emt 0:00:03]} 0-1

[Event "FIDE Women World Blitz 2021"]
[Site "Warsaw"]
[Date "2021.12.29"]
[Round "5.12"]
[White "Pourkashiyan, Atousa"]
[Black "Vantika Agrawal"]
[Result "0-1"]
[ECO "B93"]
[WhiteElo "2322"]
[BlackElo "2329"]
[Annotator "NA"]
[PlyCount "53"]
[EventDate "2021.12.29"]
[EventType "swiss"]
[EventCountry "POL"]
[Tiebreak "Cut1 Buchholz"]
[SourceTitle "playchess.com"]
[Source "ChessBase"]
[SourceQuality "1"]
[TimeControl "180+2"]

1. e4 {[%emt 0:00:01]} c5 {[%emt 0:00:01]} 2. Nf3 {[%emt 0:00:02]} d6 {[%emt 0:
00:01]} 3. d4 {[%emt 0:00:01]} cxd4 {[%emt 0:00:01]} 4. Nxd4 {[%emt 0:00:02]}
Nf6 {[%emt 0:00:02]} 5. Nc3 {[%emt 0:00:01]} a6 {[%emt 0:00:01]} 6. f4 {
[%emt 0:00:07]} e5 {[%emt 0:00:10]} 7. Nb3 {[%emt 0:00:06]} Qc7 {[%emt 0:00:06]
} 8. Bd3 {[%emt 0:00:08]} Be7 {[%emt 0:00:02]} 9. O-O {[%emt 0:00:03]} O-O {
[%emt 0:00:06]} 10. Kh1 {[%emt 0:00:04]} Nbd7 {[%emt 0:00:04]} 11. a4 {[%emt 0:
00:28]} exf4 {[%emt 0:00:26]} 12. Bxf4 {[%emt 0:00:02]} Ne5 {[%emt 0:00:02]}
13. Nd4 {[%emt 0:00:38]} Be6 {[%emt 0:00:03]} 14. Bg5 {[%emt 0:00:12]} Rfe8 {
[%emt 0:00:06]} 15. Qe1 {[%emt 0:00:14]} h6 {[%emt 0:00:29]} 16. Bxf6 {[%emt 0:
00:11]} Bxf6 {[%emt 0:00:02]} 17. Rxf6 {[%emt 0:00:02]} gxf6 {[%emt 0:00:02]}
18. Qh4 {[%emt 0:00:02]} Qc5 {[%emt 0:01:01]} 19. Nxe6 {[%emt 0:00:44]} fxe6 {
[%emt 0:00:10]} 20. Qxf6 {[%emt 0:00:03]} Kh7 {[%emt 0:00:25]} 21. Rf1 {
[%emt 0:00:26]} Qc7 {[%emt 0:00:02]} 22. Qh4 {[%emt 0:00:06]} Rf8 {[%emt 0:00:
02]} 23. Re1 {[%emt 0:00:03]} Qg7 {[%emt 0:00:01]} 24. Ne2 {[%emt 0:00:02]} Qg5
{[%emt 0:00:07]} 25. Qh3 {[%emt 0:00:01]} Rf6 {[%emt 0:00:04]} 26. Ng3 {
[%emt 0:00:02]} Raf8 {[%emt 0:00:02]} 27. Nh5 {[%emt 0:00:01]} 0-1

[Event "FIDE Women World Blitz 2021"]
[Site "Warsaw"]
[Date "2021.12.29"]
[Round "5.12"]
[White "Heredia Serrano, Carla"]
[Black "Rudzinska, Michalina"]
[Result "1/2-1/2"]
[ECO "C00"]
[WhiteElo "2138"]
[BlackElo "1832"]
[Annotator "RC"]
[PlyCount "61"]
[EventDate "2021.12.29"]
[EventType "swiss"]
[EventCountry "POL"]
[Tiebreak "Cut1 Buchholz"]
[SourceTitle "playchess.com"]
[Source "ChessBase"]
[SourceQuality "1"]
[TimeControl "180+2"]

1. e4 {[%emt 0:00:02]} c5 {[%emt 0:00:01]} 2. Nf3 {[%emt 0:00:02]} e6 {[%emt 0:
00:01]} 3. g3 {[%emt 0:00:03]} Nc6 {[%emt 0:00:09]} 4. Bg2 {[%emt 0:00:01]} Nf6
{[%emt 0:00:04]} 5. Qe2 {[%emt 0:00:07]} d6 {[%emt 0:00:03]} 6. O-O {[%emt 0:
00:02]} Be7 {[%emt 0:00:01]} 7. c3 {[%emt 0:00:02]} O-O {[%emt 0:00:06]} 8. Rd1
{[%emt 0:00:03]} b6 {[%emt 0:00:06]} 9. d4 {[%emt 0:00:04]} cxd4 {[%emt 0:00:
12]} 10. cxd4 {[%emt 0:00:10]} Bb7 {[%emt 0:00:09]} 11. Nc3 {[%emt 0:00:07]}
Rc8 {[%emt 0:00:00]} 12. Bg5 {[%emt 0:00:27]} h6 {[%emt 0:00:00]} 13. Bxf6 {
[%emt 0:00:06]} Bxf6 {[%emt 0:00:02]} 14. e5 {[%emt 0:00:02]} Be7 {[%emt 0:00:
01]} 15. d5 {[%emt 0:00:47]} exd5 {[%emt 0:01:01]} 16. Nxd5 {[%emt 0:00:13]}
Re8 {[%emt 0:00:01]} 17. Qb5 {[%emt 0:00:25]} Bf8 {[%emt 0:00:20]} 18. exd6 {
[%emt 0:00:04]} Bxd6 {[%emt 0:00:22]} 19. Rac1 {[%emt 0:00:03]} Ne7 {[%emt 0:
00:17]} 20. Nxe7+ {[%emt 0:00:11]} Qxe7 {[%emt 0:00:09]} 21. Rxc8 {[%emt 0:00:
12]} Rxc8 {[%emt 0:00:01]} 22. Qd3 {[%emt 0:00:05]} Bc5 {[%emt 0:00:02]} 23. a3
{[%emt 0:00:03]} Bc6 {[%emt 0:00:07]} 24. b4 {[%emt 0:00:02]} Be4 {[%emt 0:00:
12]} 25. Qd2 {[%emt 0:00:07]} Qb7 {[%emt 0:00:05]} 26. bxc5 {[%emt 0:00:05]}
Bxf3 {[%emt 0:00:01]} 27. Bxf3 {[%emt 0:00:03]} Qxf3 {[%emt 0:00:01]} 28. cxb6
{[%emt 0:00:04]} axb6 {[%emt 0:00:01]} 29. Qd3 {[%emt 0:00:09]} Qc6 {[%emt 0:
00:12]} 30. Qd7 {[%emt 0:00:05]} Qc5 {[%emt 0:00:03]} 31. a4 {[%emt 0:00:03]}
1/2-1/2

[Event "FIDE Women World Blitz 2021"]
[Site "Warsaw"]
[Date "2021.12.29"]
[Round "5.13"]
[White "Bulmaga, Irina"]
[Black "Salimova, Nurgyul"]
[Result "1-0"]
[ECO "B12"]
[WhiteElo "2405"]
[BlackElo "2353"]
[Annotator "NA"]
[PlyCount "77"]
[EventDate "2021.12.29"]
[EventType "swiss"]
[EventCountry "POL"]
[Tiebreak "Cut1 Buchholz"]
[SourceTitle "playchess.com"]
[Source "ChessBase"]
[SourceQuality "1"]
[TimeControl "180+2"]

1. e4 {[%emt 0:00:01]} c6 {[%emt 0:00:02]} 2. d4 {[%emt 0:00:02]} d5 {[%emt 0:
00:01]} 3. e5 {[%emt 0:00:01]} Bf5 {[%emt 0:00:02]} 4. Nf3 {[%emt 0:00:01]} e6
{[%emt 0:00:03]} 5. Be2 {[%emt 0:00:02]} Ne7 {[%emt 0:00:04]} 6. O-O {[%emt 0:
00:02]} Ng6 {[%emt 0:00:02]} 7. Be3 {[%emt 0:00:07]} Nd7 {[%emt 0:00:13]} 8.
Re1 {[%emt 0:00:13]} f6 {[%emt 0:00:25]} 9. Bd3 {[%emt 0:00:46]} Bxd3 {[%emt 0:
00:07]} 10. Qxd3 {[%emt 0:00:02]} fxe5 {[%emt 0:00:26]} 11. Nxe5 {[%emt 0:00:
02]} Ndxe5 {[%emt 0:00:07]} 12. dxe5 {[%emt 0:00:01]} Be7 {[%emt 0:00:20]} 13.
f4 {[%emt 0:00:10]} O-O {[%emt 0:00:06]} 14. g3 {[%emt 0:00:01]} Bb4 {[%emt 0:
00:34]} 15. c3 {[%emt 0:00:04]} Ba5 {[%emt 0:00:01]} 16. Nd2 {[%emt 0:00:10]}
Ne7 {[%emt 0:00:07]} 17. Nf3 {[%emt 0:00:03]} h6 {[%emt 0:00:30]} 18. Kg2 {
[%emt 0:00:15]} Bb6 {[%emt 0:00:03]} 19. Bxb6 {[%emt 0:00:07]} axb6 {[%emt 0:
00:02]} 20. a4 {[%emt 0:00:05]} c5 {[%emt 0:00:06]} 21. b3 {[%emt 0:00:15]} Qc7
{[%emt 0:00:14]} 22. Ra2 {[%emt 0:00:36]} Ra5 {[%emt 0:00:02]} 23. Rd2 {
[%emt 0:00:04]} b5 {[%emt 0:00:02]} 24. axb5 {[%emt 0:00:03]} Rfa8 {[%emt 0:00:
01]} 25. g4 {[%emt 0:00:09]} Rf8 {[%emt 0:00:03]} 26. Kg3 {[%emt 0:00:03]} Ra3
{[%emt 0:00:01]} 27. c4 {[%emt 0:00:15]} dxc4 {[%emt 0:00:05]} 28. Qxc4 {
[%emt 0:00:01]} Nd5 {[%emt 0:00:01]} 29. Rxd5 {[%emt 0:00:03]} exd5 30. Qxd5+ {
[%emt 0:00:01]} Kh8 {[%emt 0:00:02]} 31. Re4 {[%emt 0:00:09]} Ra2 {[%emt 0:00:
05]} 32. e6 {[%emt 0:00:04]} c4 {[%emt 0:00:03]} 33. bxc4 {[%emt 0:00:03]} Qa5
{[%emt 0:00:03]} 34. e7 {[%emt 0:00:02]} Re8 {[%emt 0:00:01]} 35. Qf7 {[%emt 0:
00:03]} Qa8 {[%emt 0:00:02]} 36. g5 {[%emt 0:00:05]} hxg5 {[%emt 0:00:02]} 37.
Nxg5 {[%emt 0:00:01]} Qa3+ {[%emt 0:00:03]} 38. Nf3 {[%emt 0:00:01]} Qa8 {
[%emt 0:00:02]} 39. Re5 {[%emt 0:00:01]} 1-0